bitfinex/quotes_ETHUSD_20240602
["timestamp","ask_amount","ask_price","bid_price","bid_amount"]
[1717341424511,0.07129757,3801.2,3800.8,0.553]
[1717341424808,2.3033,3801.3,3800.6,3.0]
[1717341424974,0.07097803,3801.1,3800.6,3.0]
[1717341425177,2.439,3801.0,3800.6,0.553]
[1717341425387,2.50997803,3801.0,3800.6,0.553]
[1717341425709,2.50997803,3801.0,3800.2,7.32]
[1717341425916,2.50997803,3801.0,3800.3,0.553]
[1717341427186,2.50997803,3801.0,3800.2,7.32]
[1717341427386,2.50997803,3801.0,3800.4,0.553]
[1717341431997,2.50997803,3801.0,3800.6,0.553]
[1717341432297,0.07097803,3801.0,3800.8,0.553]
[1717341432502,5.06945,3801.7,3800.9,0.553]
[1717341432806,1.256945,3801.6,3800.9,0.553]
[1717341433025,0.75,3801.6,3800.9,0.553]
[1717341433945,0.75,3801.6,3800.6,2.63114]
[1717341434119,2.439,3801.5,3800.9,0.553]
[1717341436452,2.63066,3801.4,3800.6,2.63114]
[1717341436745,2.439,3801.3,3800.7,0.553]
[1717341437101,2.63074,3801.2,3800.7,0.553]
[1717341437295,2.439,3801.1,3800.2,5.63139]
[1717341437499,2.439,3801.1,3800.4,0.553]
[1717341439818,2.63089,3801.0,3800.4,0.553]
[1717341440341,0.07096243,3800.9,3800.4,0.553]
[1717341440733,2.439,3800.8,3800.4,0.553]
[1717341441038,2.439,3800.8,3800.2,3.0]
[1717341441340,0.07096243,3800.7,3800.2,0.553]
[1717341442218,0.07096243,3800.7,3800.0,3.0]
[1717341442540,0.07096243,3800.7,3800.1,0.553]
[1717341442715,2.439,3800.8,3800.3,0.553]
[1717341443103,0.07043631,3800.7,3800.3,0.553]
[1717341443405,2.439,3800.8,3800.3,0.553]
[1717341443605,0.07043631,3800.6,3800.3,0.553]
[1717341443941,0.07043631,3800.5,3800.3,0.553]
[1717341444645,0.07043631,3800.4,3800.3,0.553]
[1717341444941,2.439,3800.8,3800.3,0.553]
[1717341445147,0.07043631,3800.4,3800.3,0.553]
[1717341445330,2.439,3800.8,3800.3,0.553]
[1717341445639,0.07043631,3800.4,3800.3,0.553]
[1717341445849,2.439,3800.8,3800.3,0.553]
[1717341446018,0.07043631,3800.4,3799.9,2.63163]
[1717341446213,2.63119,3800.6,3799.9,2.63163]
[1717341446426,2.63119,3800.6,3799.5,7.32]
[1717341446427,2.4775,3800.2,3799.7,0.553]
[1717341446924,0.07043631,3800.1,3799.7,0.553]
[1717341447127,2.4775,3800.2,3799.7,0.553]
[1717341447437,2.4775,3800.2,3799.9,0.553]
[1717341447955,0.07031938,3800.1,3799.9,0.553]
[1717341448107,2.4775,3800.2,3799.9,0.553]
[1717341448312,0.07031938,3800.1,3799.9,0.553]
[1717341448553,2.4775,3800.2,3799.9,0.553]
[1717341448853,2.4775,3800.2,3800.1,0.553]
[1717341449217,2.5477297,3800.2,3800.1,0.553]
[1717341454465,2.5477297,3800.2,3799.6,2.63184]
[1717341455021,2.5477297,3800.2,3799.7,0.553]
[1717341456017,2.5477297,3800.2,3799.6,2.63184]
[1717341456317,2.5477297,3800.2,3799.6,3.18484]
[1717341458588,2.80250267,3800.2,3799.2,2.63206]
[1717341458736,2.4775,3800.1,3799.6,0.553]
[1717341458937,2.54760493,3800.1,3799.6,0.553]
[1717341459368,2.54760493,3800.1,3799.2,2.63206]
[1717341459569,2.4775,3800.1,3799.6,0.553]
[1717341459771,0.07010493,3800.0,3799.6,0.553]
[1717341460501,0.07010493,3800.0,3799.2,2.63206]
[1717341460784,2.4775,3800.1,3799.2,2.63206]
[1717341460990,0.06992947,3799.9,3799.3,0.553]
[1717341461136,2.4775,3799.8,3799.3,0.553]
[1717341461335,2.54742947,3799.8,3799.3,0.553]
[1717341461989,2.54742947,3799.8,3799.5,0.553]
[1717341462586,2.54742947,3799.8,3799.2,2.63206]
[1717341462751,2.54742947,3799.8,3799.4,0.553]
[1717341464250,2.54742947,3799.8,3799.2,2.63206]
[1717341464454,2.54742947,3799.8,3799.3,0.553]
[1717341464839,2.54742947,3799.8,3799.2,2.63206]
[1717341465036,2.54742947,3799.8,3799.3,0.553]
[1717341466558,2.54742947,3799.8,3799.2,2.63206]
[1717341466751,3.12063042,3799.8,3799.2,2.63206]
[1717341467070,2.3142,3799.7,3799.2,2.63206]
[1717341467272,2.3142,3799.7,3799.1,0.553]
[1717341467273,2.3142,3799.7,3798.9,2.63232]
[1717341467489,2.3142,3799.5,3799.0,0.553]
[1717341467806,0.06977347,3799.4,3799.0,0.553]
[1717341467943,0.06926128,3799.4,3799.0,0.553]
[1717341468147,0.06926128,3799.4,3798.9,2.63232]
[1717341468402,0.06926128,3799.4,3798.5,10.23814713]
[1717341468403,2.3142,3799.3,3798.5,10.23814713]
[1717341468541,2.3142,3799.3,3798.6,0.553]
[1717341468740,2.3142,3799.3,3798.8,0.553]
[1717341468955,0.06916378,3799.2,3798.5,10.23814713]
[1717341469161,3.0642,3799.3,3798.8,0.553]
[1717341469377,0.06916378,3799.1,3798.5,10.23814713]
[1717341469623,2.3142,3799.3,3798.7,0.553]
[1717341469798,0.06916378,3799.0,3798.7,0.553]
[1717341470111,0.06916378,3799.0,3798.5,10.23814713]
[1717341470112,2.3142,3798.9,3798.5,0.28559713]
[1717341470316,2.3142,3799.5,3798.5,0.28559713]
[1717341470464,2.3142,3799.5,3798.6,2.63251]
[1717341470465,0.06896875,3798.8,3798.6,2.63251]
[1717341470664,0.75,3799.1,3798.7,0.553]
[1717341470975,2.3142,3799.5,3799.0,0.553]
[1717341471180,3.0642,3799.5,3799.0,0.553]
[1717341471384,3.0642,3799.5,3798.6,2.63251]
[1717341471557,3.0642,3799.5,3799.0,0.553]
[1717341471761,3.0642,3799.5,3799.2,0.553]
[1717341471963,2.3142,3799.5,3799.2,0.553]
[1717341473117,2.3142,3799.5,3799.0,0.553]
[1717341477473,3.0642,3799.5,3799.0,0.553]
[1717341479768,3.0642,3799.5,3798.9,2.63232]
[1717341480379,3.51679733,3799.5,3798.9,2.63232]
[1717341481212,2.4548,3799.4,3798.9,2.63232]
[1717341481371,2.4548,3799.4,3798.8,0.553]
[1717341481841,2.63206,3799.3,3798.5,0.28559713]
[1717341482145,2.4548,3799.2,3798.5,0.28559713]
[1717341482844,3.13904573,3799.2,3798.5,0.28559713]
[1717341482997,2.4548,3799.1,3798.5,0.28559713]
[1717341483198,3.18528,3799.0,3798.5,0.28559713]
[1717341483506,2.4548,3798.9,3798.5,0.28559713]
[1717341484326,2.63242,3798.8,3798.5,0.28559713]
[1717341484502,3.018822,3798.7,3798.5,0.28559713]
[1717341484932,0.75,3798.6,3798.5,0.28559713]
[1717341485268,0.81854352,3798.6,3798.5,0.28559713]
[1717341487533,3.30524352,3798.6,3798.5,0.28559713]
[1717341487750,3.85824352,3798.6,3798.5,0.28559713]
[1717341487895,4.56371207,3798.6,3798.5,0.28559713]
[1717341488096,4.01071207,3798.6,3798.5,0.28559713]
[1717341488651,4.56371207,3798.6,3798.5,0.28559713]
[1717341490656,7.56371207,3798.6,3798.5,0.28559713]
[1717341491240,2.4867,3798.2,3797.3,2.63339]
[1717341491576,0.80167,3798.1,3797.3,2.63339]
[1717341491760,0.31666327,3798.1,3797.3,2.63339]
[1717341491912,0.31666327,3798.1,3797.3,3.18639]
[1717341492109,0.75,3797.9,3797.3,3.18639]
[1717341492511,2.55416134,3797.8,3796.4,2.321]
[1717341492820,2.55416134,3797.8,3797.1,0.553]
[1717341493019,0.75,3797.6,3797.1,0.553]
[1717341493662,0.06744574,3797.5,3797.0,2.6336]
[1717341493814,0.06744574,3797.5,3797.2,0.553]
[1717341494016,2.4867,3797.8,3797.1,0.553]
[1717341494363,2.4867,3797.8,3797.0,2.6336]
[1717341494364,0.06744574,3797.4,3797.0,2.6336]
[1717341494565,5.11982,3797.8,3797.0,2.6336]
[1717341494856,5.11982,3797.8,3796.6,2.63388]
[1717341494857,0.06739887,3797.3,3796.6,2.63388]
[1717341495029,0.567282,3797.7,3796.9,0.553]
[1717341495229,2.55409887,3797.2,3796.9,0.553]
[1717341495470,2.4867,3797.2,3797.0,0.553]
[1717341495719,2.4867,3797.2,3796.9,0.553]
[1717341495720,0.06739887,3797.1,3796.9,0.553]
[1717341496260,0.06739887,3797.1,3796.6,2.63388]
[1717341496579,2.4867,3797.2,3796.6,2.63388]
[1717341496775,2.73537,3797.2,3796.6,2.63388]
[1717341497184,2.73537,3797.2,3796.2,2.63421]
[1717341497185,0.06739887,3797.1,3796.2,2.63421]
[1717341497365,0.81739887,3797.1,3796.2,2.63421]
[1717341498067,2.4867,3797.0,3796.2,2.63421]
[1717341498263,2.63373,3796.9,3795.8,2.63445]
[1717341498511,2.4867,3796.7,3795.8,3.18745]
[1717341498691,2.4867,3796.7,3795.8,2.63445]
[1717341498869,2.4867,3796.7,3796.3,0.553]
[1717341499286,0.06660234,3796.6,3795.8,2.63445]
[1717341499484,0.06660234,3796.6,3796.2,0.553]
[1717341500011,0.06660234,3796.6,3796.4,0.553]
[1717341500207,0.06660234,3796.6,3796.2,0.553]
[1717341500425,0.06660234,3796.6,3796.1,0.553]
[1717341500584,0.81660234,3796.6,3796.1,0.553]
[1717341500781,0.81660234,3796.6,3796.3,0.553]
[1717341501107,0.06660234,3796.6,3795.8,2.63445]
[1717341501508,0.81660234,3796.6,3795.8,3.18745]
[1717341501707,1.53051386,3796.6,3795.8,3.18745]
[1717341502626,1.53051386,3796.6,3795.8,2.63445]
[1717341502862,4.01721386,3796.6,3795.8,2.63445]
[1717341503029,4.01721386,3796.6,3795.5,7.32]
[1717341503248,4.01721386,3796.6,3795.6,0.553]
[1717341503385,4.01721386,3796.6,3795.5,7.32]
[1717341503591,6.78621386,3796.6,3794.9,4.72121346]
[1717341503912,7.33621386,3796.6,3795.3,0.553]
[1717341504301,7.33621386,3796.6,3794.9,4.72121346]
[1717341504629,2.4867,3795.8,3794.9,4.72121346]
[1717341504833,0.75,3795.6,3794.9,4.72121346]
[1717341505127,0.75,3795.6,3794.9,5.27421346]
[1717341505340,0.06519566,3795.5,3794.9,2.63915346]
[1717341505546,2.6348,3795.4,3794.9,2.08615346]
[1717341505752,0.06519566,3795.5,3794.9,2.08615346]
[1717341506038,0.75,3795.6,3794.9,2.08615346]
[1717341506039,0.06519566,3795.4,3794.9,2.08615346]
[1717341506180,0.75,3795.6,3795.1,0.553]
[1717341506384,0.06507053,3795.3,3795.1,0.553]
[1717341506660,0.587121,3795.6,3794.9,2.08615346]
[1717341506828,0.06507053,3795.2,3794.9,2.08615346]
[1717341507009,1.140121,3795.6,3794.9,2.08615346]
[1717341507199,0.06507053,3795.1,3794.9,2.08615346]
[1717341507400,0.75,3795.2,3794.9,2.08615346]
[1717341507591,0.06493369,3795.0,3794.9,2.08615346]
[1717341507795,0.75,3795.2,3794.9,2.08615346]
[1717341507997,0.06493369,3795.0,3794.9,2.08615346]
[1717341508327,0.75,3795.2,3794.9,2.08615346]
[1717341508495,0.06492199,3795.0,3794.9,2.08615346]
[1717341508696,2.63456,3795.7,3794.9,2.63915346]
[1717341508895,2.63456,3795.7,3794.9,2.08615346]
[1717341508896,0.06488289,3795.0,3794.9,2.08615346]
[1717341509194,0.75,3795.4,3794.9,2.63915346]
[1717341509416,3.126316,3795.7,3795.1,0.553]
[1717341509658,0.75,3795.4,3794.9,2.63915346]
[1717341509823,3.3848,3795.4,3794.9,2.08615346]
[1717341510168,2.63491,3795.2,3794.9,2.08615346]
[1717341510479,3.18791,3795.2,3794.9,2.08615346]
[1717341511223,2.63504,3795.0,3794.9,2.08615346]
[1717341511435,5.46804,3795.0,3794.9,2.08615346]
[1717341511647,9.02104,3795.0,3794.9,2.08615346]
[1717341511840,9.686422,3795.0,3794.9,2.08615346]
[1717341512402,12.455422,3795.0,3794.9,2.08615346]
[1717341514225,13.787422,3795.0,3794.9,2.08615346]
[1717341515272,13.8513896,3795.0,3794.9,2.08615346]
[1717341515415,13.8513896,3795.0,3793.2,2.63624]
[1717341515416,2.283,3794.2,3793.2,2.63624]
[1717341515613,0.491857,3794.1,3793.2,2.63624]
[1717341515938,0.75,3793.6,3793.2,2.63624]
[1717341516431,0.0639676,3793.5,3793.2,2.63624]
[1717341517331,2.283,3794.2,3793.2,2.63624]
[1717341517533,0.75,3793.8,3793.2,2.63624]
[1717341518127,0.063905,3793.7,3793.2,2.63624]
[1717341518329,0.063905,3793.7,3793.2,4.99904]
[1717341518718,2.63557,3794.3,3793.2,4.99904]
[1717341518943,0.75,3793.9,3793.2,4.99904]
[1717341519516,0.06395197,3793.8,3793.2,4.99904]
[1717341520149,0.491857,3794.3,3793.6,2.63597]
[1717341520317,0.06395197,3793.7,3793.6,2.63597]
[1717341520530,3.0,3794.5,3793.6,2.63597]
[1717341520750,5.283,3794.6,3793.6,2.63597]
[1717341521072,0.75,3794.0,3793.7,2.4155199]
[1717341521241,0.75,3794.0,3793.9,1.332]
[1717341521563,2.63471,3795.5,3794.3,2.63547]
[1717341521774,0.75,3794.9,3794.3,2.63547]
[1717341521972,0.75,3794.9,3794.6,2.63526]
[1717341522177,2.283,3795.6,3794.6,2.63526]
[1717341522320,0.06391482,3794.8,3794.6,2.63526]
[1717341522521,0.75,3795.3,3794.6,2.63526]
[1717341523055,0.06391482,3795.2,3794.6,2.63526]
[1717341524158,0.06391482,3795.2,3794.2,2.63554]
[1717341525062,0.06391482,3795.2,3794.5,2.63537]
[1717341525229,0.34487648,3795.1,3794.5,2.63537]
[1717341525424,0.40883823,3795.1,3794.5,2.63537]
[1717341525626,0.06396175,3795.1,3794.8,2.63515]
[1717341525959,2.3858,3796.0,3795.1,2.63494]
[1717341526155,0.75,3795.2,3795.1,2.63494]
[1717341526766,2.3858,3796.0,3795.1,2.63494]
[1717341526967,5.3858,3796.0,3795.1,2.63494]
[1717341527155,0.75,3795.5,3795.1,2.63494]
[1717341528072,5.01985,3796.5,3795.5,2.63466]
[1717341528419,0.75,3795.9,3795.5,2.63466]
[1717341529172,5.01985,3796.5,3795.5,2.63466]
[1717341529370,0.75,3796.0,3795.5,2.63466]
[1717341530240,0.06455225,3795.9,3795.5,2.63466]
[1717341530669,5.01985,3796.5,3795.5,2.63466]
[1717341530967,0.06455225,3795.8,3795.5,2.63466]
[1717341531266,0.06455225,3795.7,3795.5,2.63466]
[1717341531468,0.501985,3796.4,3795.5,2.63466]
[1717341531644,0.06455225,3795.6,3795.5,2.63466]
[1717341531855,0.501985,3796.4,3795.5,2.63466]
[1717341532078,0.06455225,3795.6,3795.5,2.63466]
[1717341532244,0.5521835,3796.3,3795.5,2.63466]
[1717341532442,0.06455225,3795.6,3795.5,2.63466]
[1717341532671,0.5521835,3796.3,3795.5,2.63466]
[1717341532881,0.06522068,3795.6,3795.5,2.63466]
[1717341533199,0.5521835,3796.3,3795.5,2.63466]
[1717341533337,5.01985,3796.5,3795.5,2.63466]
[1717341533338,0.75,3796.0,3795.5,2.63466]
[1717341533537,0.06522068,3795.6,3795.5,2.63466]
[1717341533750,0.55720335,3796.2,3795.5,2.63466]
[1717341534037,0.75,3796.0,3795.5,2.63466]
[1717341534370,0.75,3795.9,3795.5,2.63466]
[1717341534744,0.06522068,3795.8,3795.5,2.63466]
[1717341535376,0.55720335,3796.2,3795.5,2.63466]
[1717341535377,0.06522068,3795.7,3795.5,2.63466]
[1717341535544,0.55720335,3796.2,3795.5,2.63466]
[1717341535963,0.06522068,3796.1,3795.5,2.63466]
[1717341536175,0.75,3795.9,3795.5,2.63466]
[1717341536394,0.55720335,3796.2,3795.5,2.63466]
[1717341536603,0.75,3796.0,3795.5,2.63466]
[1717341536759,0.8872424,3796.0,3795.5,2.63466]
[1717341537384,0.06522068,3795.9,3795.5,2.63466]
[1717341537792,0.55720335,3796.2,3795.5,2.63466]
[1717341537952,0.06522068,3795.8,3795.5,2.63466]
[1717341538482,0.06522068,3795.7,3795.5,2.63466]
[1717341538689,0.75,3796.0,3795.5,2.63466]
[1717341538884,0.06522068,3795.6,3795.5,2.63466]
[1717341539085,0.75,3796.0,3795.5,2.63466]
[1717341539253,0.06522068,3795.6,3795.5,2.63466]
[1717341539454,0.75,3796.0,3795.5,2.63466]
[1717341539654,0.06522068,3795.6,3795.5,2.63466]
[1717341539875,0.55720335,3796.2,3795.5,2.63466]
[1717341540198,0.75,3796.0,3795.5,2.63466]
[1717341540750,0.1372424,3795.9,3795.5,2.63466]
[1717341541002,0.20246308,3795.9,3795.5,2.63466]
[1717341541288,0.81522068,3795.9,3795.1,2.63497]
[1717341544057,2.3858,3795.8,3795.1,2.63497]
[1717341544272,2.45061417,3795.8,3794.7,2.6352]
[1717341544475,0.58350542,3795.7,3794.7,2.6352]
[1717341544898,0.06481417,3795.6,3794.7,2.6352]
[1717341545516,2.69945417,3795.6,3794.7,2.6352]
[1717341546483,2.69945417,3795.6,3794.2,1.332]
[1717341546484,2.69945417,3795.6,3794.3,2.63547]
[1717341547222,0.75,3795.1,3794.3,2.63547]
[1717341547397,2.63514,3794.9,3793.9,2.6358]
[1717341547959,0.06450534,3794.8,3793.9,2.6358]
[1717341549585,0.06450534,3794.8,3794.2,2.63558]
[1717341549968,0.75,3795.1,3794.2,2.63558]
[1717341550172,0.75,3795.1,3794.5,2.63535]
[1717341550173,0.06432157,3794.7,3794.5,2.63535]
[1717341550402,4.98278,3795.3,3794.5,2.63535]
[1717341550709,0.75,3794.9,3794.5,2.63535]
[1717341550872,0.06194889,3795.2,3794.8,2.63515]
[1717341551072,4.98249,3795.7,3794.8,2.63515]
[1717341551073,0.75,3795.0,3794.8,2.63515]
[1717341551258,0.06195281,3795.1,3794.8,2.63515]
[1717341551459,4.98249,3795.7,3794.8,2.63515]
[1717341551703,0.06215258,3795.0,3794.8,2.63515]
[1717341551908,0.498249,3795.6,3794.8,2.63515]
[1717341552114,0.06226222,3794.9,3794.8,2.63515]
[1717341552277,0.75,3795.3,3794.8,2.63515]
[1717341552479,0.06033408,3794.9,3794.8,2.63515]
[1717341552787,2.3479,3795.7,3794.8,2.63515]
[1717341553003,0.75,3795.4,3794.8,2.63515]
[1717341553712,0.06033408,3795.3,3794.8,2.63515]
[1717341553872,0.23479,3795.6,3794.8,2.63515]
[1717341554074,0.06033408,3795.2,3794.8,2.63515]
[1717341554319,0.23479,3795.6,3794.8,2.63515]
[1717341554617,0.06033408,3795.1,3794.8,2.63515]
[1717341554788,0.258269,3795.5,3794.8,2.63515]
[1717341555322,0.06033408,3795.4,3794.8,2.63515]
[1717341555616,0.75,3795.3,3794.8,2.63515]
[1717341556302,0.06033408,3795.2,3794.8,2.63515]
[1717341556505,0.258269,3795.5,3794.8,2.63515]
[1717341556707,0.06033408,3795.1,3794.8,2.63515]
[1717341556913,0.258269,3795.5,3794.8,2.63515]
[1717341557094,0.06033408,3795.0,3794.8,2.63515]
[1717341557291,0.258269,3795.5,3794.8,2.63515]
[1717341557490,0.06033408,3794.9,3794.8,2.63515]
[1717341557691,0.258269,3795.5,3794.8,2.63515]
[1717341557893,0.06033408,3794.9,3794.8,2.63515]
[1717341558091,0.75,3795.3,3794.8,2.63515]
[1717341558296,2.3479,3795.7,3794.8,2.63515]
[1717341558297,0.06033408,3794.9,3794.8,2.63515]
[1717341558528,0.75,3795.3,3794.8,2.63515]
[1717341558681,0.06033408,3794.9,3794.8,2.63515]
[1717341558883,0.498241,3795.6,3794.8,2.63515]
[1717341559119,0.06033408,3794.9,3794.8,2.63515]
[1717341559323,0.498241,3795.6,3794.4,1.332]
[1717341559324,2.4596,3795.5,3794.4,2.63542]
[1717341559491,0.06033408,3794.9,3794.4,2.63542]
[1717341559692,2.769,3795.7,3794.4,2.63542]
[1717341559693,0.75,3795.2,3794.4,2.63542]
[1717341559928,0.06038897,3794.8,3794.4,2.63542]
[1717341560095,2.4596,3795.1,3794.4,2.63542]
[1717341560432,0.06038897,3794.7,3794.4,2.63542]
[1717341560725,0.32096,3795.0,3794.4,2.63542]
[1717341560726,0.06038897,3794.6,3794.4,2.63542]
[1717341560898,0.32096,3795.0,3794.4,2.63542]
[1717341561099,0.06038897,3794.5,3794.4,2.63542]
[1717341561426,0.32096,3795.0,3794.0,2.63568]
[1717341561633,0.06038897,3794.5,3794.0,2.63568]
[1717341561933,0.06038897,3794.5,3792.7,0.95877929]
[1717341561934,2.51978114,3794.4,3793.6,2.63597]
[1717341564598,0.06018114,3794.4,3793.6,2.63597]
[1717341565125,0.05998107,3794.3,3794.2,2.63557]
[1717341565309,2.63503,3795.1,3794.2,2.63557]
[1717341565532,0.05949085,3794.3,3794.2,2.63557]
[1717341565702,2.63475,3795.5,3794.2,2.63557]
[1717341565889,0.05949085,3794.3,3794.2,2.63557]
[1717341566219,9.95475,3795.5,3794.5,2.63538]
[1717341566387,1.229455,3795.4,3794.5,2.63538]
[1717341566588,0.75,3794.9,3794.5,2.63538]
[1717341567128,0.05949085,3794.8,3794.5,2.63538]
[1717341567324,0.05949085,3794.8,3794.1,2.63563]
[1717341567494,3.998455,3795.4,3794.1,2.63563]
[1717341567693,0.75,3794.6,3794.4,2.63544]
[1717341567993,1.3658255,3795.3,3794.4,2.63544]
[1717341568214,0.75,3794.9,3794.4,2.63544]
[1717341568728,0.0600204,3794.8,3794.4,2.63544]
[1717341569322,1.3658255,3795.3,3794.4,2.63544]
[1717341569534,0.06013412,3794.7,3794.4,2.63544]
[1717341569690,0.75,3794.9,3794.4,2.63544]
[1717341569691,1.36604155,3795.2,3794.4,2.63544]
[1717341569888,0.06013804,3794.6,3794.4,2.63544]
[1717341570090,1.36604155,3795.2,3794.4,2.63544]
[1717341570293,0.75,3795.0,3794.4,2.63544]
[1717341570830,0.06013804,3794.9,3794.4,2.63544]
[1717341571391,1.36604155,3795.2,3794.4,2.63544]
[1717341571591,0.06021255,3794.8,3794.4,2.63544]
[1717341571831,0.40008316,3795.1,3794.4,2.63544]
[1717341572144,0.75,3795.0,3794.4,2.63544]
[1717341572322,0.81020862,3795.0,3794.4,2.63544]
[1717341575043,0.81020862,3795.0,3794.7,2.63524]
[1717341576551,0.06020862,3795.0,3794.7,2.63524]
[1717341576703,2.3398,3795.5,3794.7,2.63524]
[1717341577050,0.06025958,3794.9,3794.7,2.63524]
[1717341577546,0.06025958,3794.8,3794.7,2.63524]
[1717341577843,0.53398,3795.4,3794.7,2.63524]
[1717341578072,0.06025958,3794.8,3794.7,2.63524]
[1717341578253,0.53398,3795.4,3794.7,2.63524]
[1717341578455,0.06027134,3794.8,3794.7,2.63524]
[1717341578610,0.53398,3795.4,3794.7,2.63524]
[1717341578812,0.06027134,3794.8,3794.7,2.63524]
[1717341579326,0.75,3795.1,3794.7,2.63524]
[1717341579531,0.06027134,3794.8,3794.7,2.63524]
[1717341579740,0.75,3795.1,3794.7,2.63524]
[1717341580116,0.06027529,3795.0,3794.7,2.63524]
[1717341580540,1.332,3796.3,3794.7,2.63524]
[1717341580864,0.06027529,3794.9,3794.7,2.63524]
[1717341581055,0.563455,3795.6,3794.7,2.63524]
[1717341581222,0.06028702,3794.8,3794.7,2.63524]
[1717341581554,0.563455,3795.6,3794.7,2.63524]
[1717341581711,0.06028702,3794.8,3794.7,2.63524]
[1717341581933,0.563455,3795.6,3794.7,2.63524]
[1717341582239,0.06026349,3794.8,3794.7,2.63524]
[1717341582476,2.3398,3795.9,3795.1,2.63497]
[1717341582840,0.75,3795.3,3795.1,2.63497]
[1717341583274,0.06029486,3795.2,3795.1,2.63497]
[1717341583789,0.06036151,3795.2,3795.1,2.63497]
[1717341583952,0.75,3795.3,3795.1,2.63497]
[1717341584334,0.497435,3795.7,3795.1,2.63497]
[1717341584335,0.06036151,3795.2,3795.1,2.63497]
[1717341584582,0.75,3795.3,3795.1,2.63497]
[1717341584760,0.06036151,3795.2,3795.1,2.63497]
[1717341584931,0.75,3795.3,3795.1,2.63497]
[1717341585139,0.06036151,3795.2,3795.1,2.63497]
[1717341585376,0.75,3795.3,3795.1,2.63497]
[1717341585737,0.06042032,3795.2,3795.1,2.63497]
[1717341585944,2.63428,3796.1,3795.4,2.63476]
[1717341586265,0.75,3795.6,3795.4,2.63476]
[1717341587276,2.4451,3796.2,3795.4,2.63476]
[1717341587481,0.75,3795.8,3795.4,2.63476]
[1717341587679,2.4451,3796.2,3794.6,2.3402]
[1717341587680,2.4451,3796.2,3795.1,1.332]
[1717341587864,0.75,3795.9,3795.7,2.63453]
[1717341590266,0.06054189,3795.8,3795.7,2.63453]
[1717341590742,2.4451,3796.6,3795.7,2.63453]
[1717341590944,1.239896,3796.5,3795.7,2.63453]
[1717341591145,2.4451,3796.6,3795.7,2.63453]
[1717341591487,0.75,3796.1,3795.7,2.63453]
[1717341600081,0.75,3796.1,3795.3,2.63477]
[1717341605267,0.06067122,3796.0,3795.3,2.63477]
[1717341605899,0.06067122,3796.0,3795.5,0.554]
[1717341606193,0.64966934,3796.0,3795.5,0.554]
[1717341610313,0.64966934,3796.0,3795.3,2.63477]
[1717341610521,3.28401934,3796.0,3795.3,2.63477]
[1717341611894,3.28401934,3796.0,3795.3,3.18877]
[1717341612145,3.28401934,3796.0,3795.3,2.63477]
[1717341612296,0.64791193,3795.9,3795.3,3.18877]
[1717341612624,0.06070651,3795.8,3795.3,3.18877]
[1717341613342,2.6347,3795.5,3794.6,2.63531]
[1717341613498,2.6347,3795.5,3794.8,0.554]
[1717341613699,0.5086,3795.4,3794.6,2.63531]
[1717341613939,0.06053403,3795.3,3794.8,0.554]
[1717341614305,0.75,3795.2,3794.8,0.554]
[1717341614525,0.75,3795.2,3794.6,2.63531]
[1717341614841,0.06053403,3795.1,3794.6,2.63531]
[1717341615027,0.06053403,3795.1,3794.8,0.554]
[1717341615637,0.06053403,3795.1,3794.4,2.3492]
[1717341615853,0.06053403,3795.1,3794.8,0.554]
[1717341616298,0.06053403,3795.1,3794.4,2.3492]
[1717341616509,0.06053403,3795.1,3794.7,0.554]
[1717341619136,5.08634,3795.0,3794.3,2.63553]
[1717341619335,5.08634,3795.0,3794.5,0.554]
[1717341619552,0.06029093,3794.9,3793.9,7.98495]
[1717341619758,5.08634,3795.0,3794.4,0.554]
[1717341619959,0.06029093,3794.8,3794.4,0.554]
[1717341620154,0.06029093,3794.8,3793.9,4.98495]
[1717341620155,0.55420353,3794.8,3793.9,4.98495]
[1717341620359,0.55420353,3794.8,3794.3,0.554]
[1717341620690,0.06029093,3794.7,3794.3,0.554]
[1717341621028,0.55420353,3794.8,3794.3,0.554]
[1717341621233,0.06014973,3794.6,3793.9,4.98495]
[1717341621541,0.55420353,3794.8,3794.4,0.554]
[1717341621732,0.06014973,3794.7,3794.4,0.554]
[1717341622028,0.55420353,3794.8,3794.4,0.554]
[1717341622232,0.06014973,3794.6,3794.4,0.554]
[1717341622477,0.55420353,3794.8,3794.4,0.554]
[1717341622771,0.75,3794.8,3794.4,0.554]
[1717341622971,0.06014973,3794.7,3794.4,0.554]
[1717341623267,5.08634,3795.0,3794.4,0.554]
[1717341623774,0.06014973,3794.9,3794.4,0.554]
[1717341623947,0.75,3794.8,3794.4,0.554]
[1717341624333,0.06014973,3794.7,3794.4,0.554]
[1717341624533,0.75,3794.8,3794.4,0.554]
[1717341624758,0.06014973,3794.7,3794.4,0.554]
[1717341624955,0.75,3794.8,3794.4,0.554]
[1717341625176,0.06014973,3794.6,3794.4,0.554]
[1717341625358,0.54817444,3794.9,3794.4,0.554]
[1717341625533,0.06014973,3794.5,3794.4,0.554]
[1717341625932,0.54817444,3794.9,3794.4,0.554]
[1717341626173,0.81014973,3794.8,3794.4,0.554]
[1717341629486,0.81014973,3794.8,3793.9,4.98495]
[1717341629798,0.75,3794.8,3794.3,0.554]
[1717341630084,1.43400686,3794.8,3794.3,0.554]
[1717341630249,0.06018503,3794.7,3794.3,0.554]
[1717341630649,1.43400686,3794.8,3794.3,0.554]
[1717341630860,0.06018503,3794.6,3794.3,0.554]
[1717341631143,2.69544503,3794.7,3794.3,0.554]
[1717341631348,0.0601615,3794.5,3794.3,0.554]
[1717341631650,2.63526,3794.7,3794.3,0.554]